fUSD/lending_fUSD_20240814
["ID","MTS","AMOUNT","RATE_DAILY","PERIOD"]
[334804225,1723601448242,-500.0,0.00013698,2]
[334804226,1723601448251,-500.0,0.00013698,2]
[334804227,1723601448260,-500.0,0.00013698,2]
[334804228,1723601448271,-500.0,0.00013698,2]
[334804229,1723601448282,-500.0,0.00013698,2]
[334804230,1723601448291,-500.0,0.00013698,2]
[334804231,1723601448301,-500.0,0.00013698,2]
[334804232,1723601448311,-500.0,0.00013698,2]
[334804233,1723601448320,-500.0,0.00013698,2]
[334804234,1723601448330,-500.0,0.00013698,2]
[334804235,1723601448340,-500.0,0.00013698,2]
[334804236,1723601448350,-500.0,0.00013698,2]
[334804237,1723601448360,-500.0,0.00013698,2]
[334804238,1723601448371,-587.0,0.00013698,2]
[334804239,1723601448381,-500.0,0.00013698,2]
[334804240,1723601448391,-500.0,0.00013698,2]
[334804241,1723601448401,-560.96,0.00013698,2]
[334804242,1723601448411,-500.0,0.00013698,2]
[334804243,1723601448421,-500.0,0.00013698,2]
[334804244,1723601448430,-151.0,0.00013698,2]
[334804245,1723601448440,-151.0,0.00013698,2]
[334804246,1723601448449,-500.0,0.00013698,2]
[334804247,1723601448459,-677.41,0.00013698,2]
[334804248,1723601448468,-151.0,0.00013698,2]
[334804249,1723601448477,-151.0,0.00013698,2]
[334804250,1723601448487,-500.0,0.00013698,2]
[334804251,1723601448496,-860.6,0.00013698,2]
[334804252,1723601448505,-500.0,0.00013698,2]
[334804253,1723601448515,-500.0,0.00013698,2]
[334804254,1723601448524,-500.0,0.00013698,2]
[334804255,1723601448534,-500.0,0.00013698,2]
[334804256,1723601448544,-199.7116791,0.00013698,2]
[334804257,1723601448560,-343.27236094,0.00013698,2]
[334804258,1723601448570,-500.0,0.00013698,2]
[334804259,1723601448579,-500.0,0.00013698,2]
[334804260,1723601448589,-500.0,0.00013698,2]
[334804261,1723601448598,-500.0,0.00013698,2]
[334804262,1723601448608,-500.0,0.00013698,2]
[334804263,1723601448619,-500.0,0.00013698,2]
[334804264,1723601448629,-500.0,0.00013698,2]
[334804265,1723601448639,-500.0,0.00013698,2]
[334804266,1723601448649,-500.0,0.00013698,2]
[334804267,1723601448658,-435.73662349,0.00013698,2]
[334804268,1723601448669,-313.30259975,0.00013698,2]
[334804269,1723601448682,-186.69740025,0.00013698,2]
[334804270,1723601448692,-99.06563275,0.00013698,2]
[334804271,1723601448704,-400.93436725,0.00013698,2]
[334804272,1723601448714,-299.61253111,0.00013698,2]
[334804273,1723601448726,-200.38746889,0.00013698,2]
[334804274,1723601448738,-227.99456355,0.00013698,2]
[334804275,1723601448749,-272.00543645,0.00013698,2]
[334804276,1723601448759,-91.99456355,0.00013698,2]
[334804277,1723601448770,-408.00543645,0.00013698,2]
[334804278,1723601448784,-62.8279999,0.00013698,2]
[334804279,1723601448795,-437.1720001,0.00013698,2]
[334804280,1723601448805,-500.0,0.00013698,2]
[334804281,1723601448815,-500.0,0.00013698,2]
[334804282,1723601448825,-500.0,0.00013698,2]
[334804283,1723601448835,-500.0,0.00013698,2]
[334804284,1723601448844,-73.5479999,0.00013698,2]
[334804285,1723601448861,-1331.4120001,0.00013698,2]
[334804286,1723601448880,-2260.63,0.00013698,2]
[334804287,1723601448890,-500.0,0.00013698,2]
[334804288,1723601448899,-1706.75,0.00013698,2]
[334804289,1723601448909,-500.0,0.00013698,2]
[334804290,1723601448919,-427.58080006,0.00013698,2]
[334804291,1723601448931,-651.57919994,0.00013698,2]
[334804292,1723601448942,-742.45,0.00013698,2]
[334804293,1723601448952,-500.0,0.00013698,2]
[334804294,1723601448962,-500.0,0.00013698,2]
[334804295,1723601448972,-500.0,0.00013698,2]
[334804296,1723601448981,-619.00800101,0.00013698,2]
[334804297,1723601448991,-500.0,0.00013698,2]
[334804298,1723601449001,-500.0,0.00013698,2]
[334804299,1723601449010,-592.07,0.00013698,2]
[334804300,1723601449020,-500.0,0.00013698,2]
[334804301,1723601449030,-500.0,0.00013698,2]
[334804302,1723601449040,-562.87185963,0.00013698,2]
[334804303,1723601449049,-793.13,0.00013698,2]
[334804304,1723601449059,-500.0,0.00013698,2]
[334804305,1723601449069,-500.0,0.00013698,2]
[334804306,1723601449079,-500.0,0.00013698,2]
[334804307,1723601449089,-500.0,0.00013698,2]
[334804308,1723601449099,-5198.03,0.00013698,2]
[334804309,1723601449108,-500.0,0.00013698,2]
[334804310,1723601449122,-151.0,0.00013698,2]
[334804311,1723601449132,-151.0,0.00013698,2]
[334804312,1723601449142,-2075.91,0.00013698,2]
[334804313,1723601449152,-151.632761,0.00013698,2]
[334804314,1723601449161,-500.0,0.00013698,2]
[334804315,1723601449171,-746.49,0.00013698,2]
[334804316,1723601449181,-151.0,0.00013698,2]
[334804317,1723601449191,-500.0,0.00013698,2]
[334804318,1723601449204,-500.0,0.00013698,2]
[334804319,1723601449215,-151.0,0.00013698,2]
[334804320,1723601449224,-1545.53,0.00013698,2]
[334804321,1723601449234,-151.528297,0.00013698,2]
[334804322,1723601449246,-756.29,0.00013698,2]
[334804323,1723601449256,-500.0,0.00013698,2]
[334804324,1723601449265,-500.0,0.00013698,2]
[334804325,1723601449275,-500.0,0.00013698,2]
[334804326,1723601449286,-500.0,0.00013698,2]
[334804327,1723601449295,-500.0,0.00013698,2]
[334804328,1723601449307,-500.0,0.00013698,2]
[334804329,1723601449317,-500.0,0.00013698,2]
[334804330,1723601449327,-500.0,0.00013698,2]
[334804331,1723601449337,-500.0,0.00013698,2]
[334804332,1723601449347,-500.0,0.00013698,2]
[334804333,1723601449357,-500.0,0.00013698,2]
[334804334,1723601449370,-500.0,0.00013698,2]
[334804335,1723601449381,-1519.78,0.00013698,2]
[334804336,1723601449391,-151.0,0.00013698,2]
[334804337,1723601449400,-151.0,0.00013698,2]
[334804338,1723601449410,-151.0,0.00013698,2]
[334804339,1723601449419,-500.0,0.00013698,2]
[334804340,1723601449429,-500.0,0.00013698,2]
[334804341,1723601449438,-151.0,0.00013698,2]
[334804342,1723601449448,-500.0,0.00013698,2]
[334804343,1723601449457,-500.0,0.00013698,2]
[334804344,1723601449467,-2046.59,0.00013698,2]
[334804345,1723601449477,-216.83157,0.00013698,2]
[334804346,1723601449487,-500.0,0.00013698,2]
[334804347,1723601449496,-500.0,0.00013698,2]
[334804348,1723601449506,-500.0,0.00013698,2]
[334804349,1723601449516,-500.0,0.00013698,2]
[334804350,1723601449525,-151.0,0.00013698,2]
[334804351,1723601449535,-500.0,0.00013698,2]
[334804352,1723601449545,-151.0,0.00013698,2]
[334804353,1723601449554,-500.0,0.00013698,2]
[334804354,1723601449564,-151.0,0.00013698,2]
[334804355,1723601449574,-893.84,0.00013698,2]
[334804356,1723601449583,-500.0,0.00013698,2]
[334804357,1723601449592,-151.0,0.00013698,2]
[334804358,1723601449602,-841.32,0.00013698,2]
[334804359,1723601449611,-808.27,0.00013698,2]
[334804360,1723601449622,-5561.17,0.00013698,2]
[334804361,1723601449632,-500.0,0.00013698,2]
[334804362,1723601449642,-512.75,0.00013698,2]
[334804363,1723601449652,-544.09,0.00013698,2]
[334804364,1723601449662,-531.6,0.00013698,2]
[334804365,1723601449671,-500.0,0.00013698,2]
[334804366,1723601449681,-151.0,0.00013698,2]
[334804367,1723601449690,-296.000949,0.00013698,2]
[334804368,1723601449699,-761.52,0.00013698,2]
[334804369,1723601449709,-500.0,0.00013698,2]
[334804370,1723601449718,-4661.03,0.00013698,2]
[334804371,1723601449727,-792.54,0.00013698,2]
[334804372,1723601449737,-500.0,0.00013698,2]
[334804373,1723601449747,-500.0,0.00013698,2]
[334804374,1723601449756,-500.0,0.00013698,2]
[334804375,1723601449765,-500.0,0.00013698,2]
[334804376,1723601449774,-151.0,0.00013698,2]
[334804377,1723601449784,-151.0,0.00013698,2]
[334804378,1723601449794,-151.0,0.00013698,2]
[334804379,1723601449803,-166.125984,0.00013698,2]
[334804380,1723601449812,-530.05,0.00013698,2]
[334804381,1723601449822,-500.0,0.00013698,2]
[334804382,1723601449833,-1399.27,0.00013698,2]
[334804383,1723601449843,-500.0,0.00013698,2]
[334804384,1723601449853,-328.82576765,0.00013698,2]
[334804385,1723601449863,-713.92,0.00013698,2]
[334804386,1723601449874,-500.0,0.00013698,2]
[334804387,1723601449883,-622.21,0.00013698,2]
[334804388,1723601449893,-500.0,0.00013698,2]
[334804389,1723601449902,-554.34616229,0.00013698,2]
[334804390,1723601449911,-500.0,0.00013698,2]
[334804391,1723601449921,-2341.14,0.00013698,2]
[334804392,1723601449930,-2636.85,0.00013698,2]
[334804393,1723601449940,-361.79312284,0.00013698,2]
[334804394,1723601449950,-537.81,0.00013698,2]
[334804395,1723601449959,-500.0,0.00013698,2]
[334804396,1723601449969,-169.46988451,0.00013698,2]
[334804397,1723601449992,-330.53011549,0.00013698,2]
[334804398,1723601450001,-1000.74,0.00013698,2]
[334804399,1723601450011,-500.0,0.00013698,2]
[334804400,1723601450020,-500.0,0.00013698,2]
[334804401,1723601450029,-500.0,0.00013698,2]
[334804402,1723601450039,-500.0,0.00013698,2]
[334804403,1723601450048,-500.0,0.00013698,2]
[334804404,1723601450057,-500.0,0.00013698,2]
[334804405,1723601450066,-596.02,0.00013698,2]
[334804406,1723601450076,-500.0,0.00013698,2]
[334804407,1723601450085,-596.02,0.00013698,2]
[334804408,1723601450094,-596.02,0.00013698,2]
[334804409,1723601450103,-596.02,0.00013698,2]
[334804410,1723601450113,-500.0,0.00013698,2]
[334804411,1723601450124,-596.02,0.00013698,2]
[334804412,1723601450133,-500.0,0.00013698,2]
[334804413,1723601450142,-596.02,0.00013698,2]
[334804414,1723601450152,-596.02,0.00013698,2]
[334804415,1723601450161,-596.02,0.00013698,2]
[334804416,1723601450170,-596.02,0.00013698,2]
[334804417,1723601450180,-596.02,0.00013698,2]
[334804418,1723601450190,-604.04,0.00013698,2]
[334804419,1723601450203,-596.02,0.00013698,2]
[334804420,1723601450212,-596.02,0.00013698,2]
[334804421,1723601450222,-596.02,0.00013698,2]
[334804422,1723601450231,-579.19,0.00013698,2]
[334804423,1723601450242,-6582.11,0.00013698,2]
[334804424,1723601450251,-1679.58,0.00013698,2]
[334804425,1723601450260,-596.02,0.00013698,2]
[334804426,1723601450270,-596.02,0.00013698,2]
[334804427,1723601450280,-1135.49,0.00013698,2]
[334804428,1723601450290,-596.02,0.00013698,2]
[334804429,1723601450301,-596.02,0.00013698,2]
[334804430,1723601450310,-596.02,0.00013698,2]
[334804431,1723601450320,-500.0,0.00013698,2]
[334804432,1723601450329,-596.02,0.00013698,2]
[334804433,1723601450339,-596.02,0.00013698,2]
[334804434,1723601450349,-500.0,0.00013698,2]
[334804435,1723601450359,-502.42,0.00013698,2]
[334804436,1723601450371,-596.02,0.00013698,2]
[334804437,1723601450380,-1201.33,0.00013698,2]
[334804438,1723601450391,-596.02,0.00013698,2]
[334804439,1723601450400,-596.02,0.00013698,2]
[334804440,1723601450410,-500.0,0.00013698,2]
[334804441,1723601450419,-596.24949551,0.00013698,2]
[334804442,1723601450428,-500.0,0.00013698,2]
[334804443,1723601450437,-500.0,0.00013698,2]
[334804444,1723601450446,-500.0,0.00013698,2]
[334804445,1723601450455,-194.09456314,0.00013698,2]
[334804446,1723601450464,-500.0,0.00013698,2]
[334804447,1723601450474,-500.0,0.00013698,2]
[334804448,1723601450483,-618.99,0.00013698,2]
[334804449,1723601450492,-500.0,0.00013698,2]
[334804450,1723601450501,-681.51,0.00013698,2]
[334804451,1723601450511,-7262.09,0.00013698,2]
[334804452,1723601450521,-500.0,0.00013698,2]
[334804453,1723601450530,-500.0,0.00013698,2]
[334804454,1723601450539,-500.0,0.00013698,2]
[334804455,1723601450549,-875.59,0.00013698,2]
[334804456,1723601450558,-500.0,0.00013698,2]
[334804457,1723601450741,-500.0,0.00013698,2]
[334804458,1723601450751,-500.0,0.00013698,2]
[334804459,1723601450761,-619.17,0.00013698,2]
[334804460,1723601450770,-674.04,0.00013698,2]
[334804461,1723601450780,-500.0,0.00013698,2]
[334804462,1723601450789,-500.0,0.00013698,2]
[334804463,1723601450798,-500.0,0.00013698,2]
[334804464,1723601450808,-500.0,0.00013698,2]
[334804465,1723601450817,-929.65,0.00013698,2]
[334804466,1723601450827,-500.0,0.00013698,2]
[334804467,1723601450836,-500.0,0.00013698,2]
[334804468,1723601450845,-1010.31,0.00013698,2]
[334804469,1723601450855,-500.0,0.00013698,2]
[334804470,1723601450866,-781.23,0.00013698,2]
[334804471,1723601450876,-500.0,0.00013698,2]
[334804472,1723601450886,-3051.47,0.00013698,2]
[334804473,1723601450895,-1459.1,0.00013698,2]
[334804474,1723601450904,-500.0,0.00013698,2]
[334804475,1723601450913,-500.0,0.00013698,2]
[334804476,1723601450922,-500.0,0.00013698,2]
[334804477,1723601450931,-500.0,0.00013698,2]
[334804478,1723601450941,-500.0,0.00013698,2]
[334804479,1723601450950,-500.0,0.00013698,2]
[334804480,1723601450959,-1539.79,0.00013698,2]
[334804481,1723601450969,-500.0,0.00013698,2]
[334804482,1723601450978,-673.41,0.00013698,2]
[334804483,1723601450988,-920.59,0.00013698,2]
[334804484,1723601450998,-500.0,0.00013698,2]
[334804485,1723601451007,-500.0,0.00013698,2]
[334804486,1723601451017,-500.0,0.00013698,2]
[334804487,1723601451026,-2169.3,0.00013698,2]
[334804488,1723601451036,-500.0,0.00013698,2]
[334804489,1723601451045,-500.0,0.00013698,2]
[334804490,1723601451055,-500.0,0.00013698,2]
[334804491,1723601451064,-1952.95,0.00013698,2]
[334804492,1723601451073,-990.39,0.00013698,2]
[334804493,1723601451083,-500.0,0.00013698,2]
[334804494,1723601451095,-500.0,0.00013698,2]
[334804495,1723601451104,-1397.13,0.00013698,2]
[334804496,1723601451113,-500.0,0.00013698,2]
[334804497,1723601451125,-500.0,0.00013698,2]
[334804498,1723601451134,-500.0,0.00013698,2]
[334804499,1723601451143,-500.0,0.00013698,2]
[334804500,1723601451152,-500.0,0.00013698,2]
[334804501,1723601451162,-785.02,0.00013698,2]
[334804502,1723601451171,-1887.71,0.00013698,2]
[334804503,1723601451180,-2304.63,0.00013698,2]
[334804504,1723601451190,-500.0,0.00013698,2]
[334804505,1723601451200,-500.3531292,0.00013698,2]
[334804506,1723601451210,-768.01,0.00013698,2]
[334804507,1723601451220,-500.0,0.00013698,2]
[334804508,1723601451231,-1138.26,0.00013698,2]
[334804509,1723601451241,-500.0,0.00013698,2]
[334804510,1723601451249,-500.0,0.00013698,2]
[334804511,1723601451259,-500.0,0.00013698,2]
[334804512,1723601451269,-500.0,0.00013698,2]
[334804513,1723601451278,-1121.28,0.00013698,2]
[334804514,1723601451287,-500.0,0.00013698,2]
[334804515,1723601451298,-500.0,0.00013698,2]
[334804516,1723601451308,-500.0,0.00013698,2]
[334804517,1723601451317,-1000.0,0.00013698,2]
[334804518,1723601451327,-3339.32,0.00013698,2]
[334804519,1723601451337,-726.69,0.00013698,2]
[334804520,1723601451346,-516.95,0.00013698,2]
[334804521,1723601451356,-500.0,0.00013698,2]
[334804522,1723601451369,-500.0,0.00013698,2]
[334804523,1723601451379,-4542.62,0.00013698,2]
[334804524,1723601451388,-500.0,0.00013698,2]
[334804525,1723601451398,-1077.07,0.00013698,2]
[334804526,1723601451407,-500.0,0.00013698,2]
[334804527,1723601451416,-500.0,0.00013698,2]
[334804528,1723601451426,-500.0,0.00013698,2]
[334804529,1723601451436,-502.07521481,0.00013698,2]
[334804530,1723601451445,-508.64,0.00013698,2]
[334804531,1723601451454,-500.0,0.00013698,2]
[334804532,1723601451464,-2154.53,0.00013698,2]
[334804533,1723601451473,-793.29,0.00013698,2]
[334804534,1723601451482,-500.0,0.00013698,2]
[334804535,1723601451492,-500.0,0.00013698,2]
[334804536,1723601451501,-1091.77,0.00013698,2]
[334804537,1723601451511,-500.0,0.00013698,2]
[334804538,1723601451520,-500.0,0.00013698,2]
[334804539,1723601451529,-500.0,0.00013698,2]
[334804540,1723601451539,-500.0,0.00013698,2]
[334804541,1723601451548,-500.0,0.00013698,2]
[334804542,1723601451558,-548.82,0.00013698,2]
[334804543,1723601451567,-458.81677,0.00013698,2]
[334804544,1723601451576,-500.0,0.00013698,2]
[334804545,1723601451585,-458.81677,0.00013698,2]
[334804546,1723601451595,-458.81677,0.00013698,2]
[334804547,1723601451604,-458.81677,0.00013698,2]
[334804548,1723601451613,-2227.54,0.00013698,2]
[334804549,1723601451625,-500.0,0.00013698,2]
[334804550,1723601451635,-500.0,0.00013698,2]
[334804551,1723601451644,-500.0,0.00013698,2]
[334804552,1723601451653,-500.0,0.00013698,2]
[334804553,1723601451663,-5486.24,0.00013698,2]
[334804554,1723601451672,-458.81677,0.00013698,2]
[334804555,1723601451682,-500.0,0.00013698,2]
[334804556,1723601451691,-3276.87,0.00013698,2]
[334804557,1723601451700,-458.81677,0.00013698,2]
[334804558,1723601451709,-458.81677,0.00013698,2]
[334804559,1723601451719,-515.68,0.00013698,2]
[334804560,1723601451728,-458.81677,0.00013698,2]
[334804561,1723601451737,-500.0,0.00013698,2]
[334804562,1723601451746,-500.0,0.00013698,2]
[334804563,1723601451755,-586.58,0.00013698,2]
[334804564,1723601451764,-500.0,0.00013698,2]
[334804565,1723601451773,-1143.03,0.00013698,2]
[334804566,1723601451782,-500.0,0.00013698,2]
[334804567,1723601451791,-99.53677185,0.00013698,2]
[334804568,1723601452464,-316.80001562,0.00013499,2]
[334804569,1723601452479,-48.55643665,0.00013698,2]
[334804570,1723601452498,-351.9067915,0.00013698,2]
[334804571,1723601452513,-500.0,0.00013698,2]
[334804572,1723601452528,-618.11,0.00013698,2]
[334804573,1723601452542,-437.80739664,0.00013698,2]
[334804574,1723601452561,-62.19260336,0.00013698,2]
[334804575,1723601452576,-500.0,0.00013698,2]
[334804576,1723601452591,-500.0,0.00013698,2]
[334804577,1723601452605,-641.46938967,0.00013698,2]
[334804578,1723601452624,-9.01061033,0.00013698,2]
[334804579,1723601452638,-406.08938967,0.00013698,2]
[334804580,1723601452657,-706.04,0.00013698,2]
[334804581,1723601452675,-217.82061033,0.00013698,2]
[334804582,1723601452690,-500.0,0.00013698,2]
[334804583,1723601452705,-352.8544857,0.00013698,2]
[334804584,1723601452724,-1597.4355143,0.00013698,2]
[334804585,1723601452739,-1000.0,0.00013698,2]
[334804586,1723601452754,-576.69,0.00013698,2]
[334804587,1723601452769,-816.16,0.00013698,2]
[334804588,1723601452784,-500.0,0.00013698,2]
[334804589,1723601452800,-500.0,0.00013698,2]
[334804590,1723601452815,-151.0,0.00013698,2]
[334804591,1723601452830,-500.0,0.00013698,2]
[334804592,1723601452846,-151.0,0.00013698,2]
[334804593,1723601452862,-500.0,0.00013698,2]
[334804594,1723601452879,-151.0,0.00013698,2]
[334804595,1723601452894,-151.0,0.00013698,2]
[334804596,1723601452909,-687.5,0.00013698,2]
[334804597,1723601452925,-1940.47,0.00013698,2]
[334804598,1723601452940,-500.0,0.00013698,2]
[334804599,1723601452955,-1670.15,0.00013698,2]
[334804600,1723601452970,-151.0,0.00013698,2]
[334804601,1723601452985,-151.0,0.00013698,2]
[334804602,1723601453000,-151.0,0.00013698,2]
[334804603,1723601453015,-804.88,0.00013698,2]
[334804604,1723601453028,-229.622349,0.00013698,2]
[334804605,1723601453043,-500.0,0.00013698,2]
[334804606,1723601453058,-500.0,0.00013698,2]
[334804607,1723601453073,-1825.05,0.00013698,2]
[334804608,1723601453088,-500.0,0.00013698,2]
[334804609,1723601453103,-500.0,0.00013698,2]
[334804610,1723601453119,-645.57,0.00013698,2]
[334804611,1723601453134,-333.49510955,0.00013698,2]
[334804612,1723601453150,-516.43,0.00013698,2]
[334804613,1723601453165,-500.0,0.00013698,2]
[334804614,1723601453181,-500.0,0.00013698,2]
[334804615,1723601453197,-516.29180201,0.00013698,2]
[334804616,1723601453213,-524.35,0.00013698,2]
[334804617,1723601453228,-863.93,0.00013698,2]
[334804618,1723601453245,-500.0,0.00013698,2]
[334804619,1723601453259,-500.0,0.00013698,2]
[334804620,1723601453274,-500.0,0.00013698,2]
[334804621,1723601453291,-893.27,0.00013698,2]
[334804622,1723601453307,-2029.14,0.00013698,2]
[334804623,1723601453323,-893.27,0.00013698,2]
[334804624,1723601453338,-500.0,0.00013698,2]
[334804625,1723601453354,-893.27,0.00013698,2]
[334804626,1723601453371,-500.0,0.00013698,2]
[334804627,1723601453386,-893.27,0.00013698,2]
[334804628,1723601453401,-500.0,0.00013698,2]
[334804629,1723601453417,-893.27,0.00013698,2]
[334804630,1723601453431,-893.27,0.00013698,2]
[334804631,1723601453446,-893.27,0.00013698,2]
[334804632,1723601453461,-893.27,0.00013698,2]
[334804633,1723601453476,-500.0,0.00013698,2]
[334804634,1723601453489,-893.27,0.00013698,2]
[334804635,1723601453505,-893.27,0.00013698,2]
[334804636,1723601453517,-893.27,0.00013698,2]
[334804637,1723601453527,-893.27,0.00013698,2]
[334804638,1723601453537,-500.0,0.00013698,2]
[334804639,1723601453546,-291.842128,0.00013698,2]
[334804640,1723601453555,-500.0,0.00013698,2]
[334804641,1723601453565,-500.0,0.00013698,2]
[334804642,1723601453574,-558.47,0.00013698,2]
[334804643,1723601453865,-500.0,0.00013698,2]
[334804644,1723601453895,-500.0,0.00013698,2]
[334804645,1723601453917,-500.0,0.00013698,2]
[334804646,1723601453928,-500.0,0.00013698,2]
[334804647,1723601453938,-650.38,0.00013698,2]
[334804648,1723601453948,-367.26771735,0.00013698,2]
[334804649,1723601453958,-500.0,0.00013698,2]
[334804650,1723601453968,-500.0,0.00013698,2]
[334804651,1723601453978,-500.0,0.00013698,2]
[334804652,1723601453988,-1307.95,0.00013698,2]
[334804653,1723601453998,-500.0,0.00013698,2]
[334804654,1723601454008,-893.27,0.00013698,2]
[334804655,1723601454017,-893.27,0.00013698,2]
[334804656,1723601454027,-500.0,0.00013698,2]
[334804657,1723601454037,-893.27,0.00013698,2]
[334804658,1723601454047,-893.27,0.00013698,2]
[334804659,1723601454057,-893.27,0.00013698,2]
[334804660,1723601454066,-893.27,0.00013698,2]
[334804661,1723601454076,-1293.07,0.00013698,2]
[334804662,1723601454086,-893.27,0.00013698,2]
[334804663,1723601454095,-500.0,0.00013698,2]
[334804664,1723601454106,-500.0,0.00013698,2]
[334804665,1723601454116,-500.0,0.00013698,2]
[334804666,1723601454127,-500.0,0.00013698,2]
[334804667,1723601454137,-500.0,0.00013698,2]
[334804668,1723601454147,-3597.69697463,0.00013698,2]
[334804669,1723601454165,-1041.90302537,0.00013698,2]
[334804670,1723601454175,-148.07781664,0.00013698,2]
[334804671,1723601454187,-351.92218336,0.00013698,2]
[334804672,1723601454200,-500.0,0.00013698,2]
[334804673,1723601454214,-500.0,0.00013698,2]
[334804674,1723601454230,-166.29661664,0.00013698,2]
[334804675,1723601454243,-333.70338336,0.00013698,2]
[334804676,1723601454252,-500.0,0.00013698,2]
[334804677,1723601454264,-500.0,0.00013698,2]
[334804678,1723601454274,-498.54626305,0.00013698,2]
[334804679,1723601454283,-922.15,0.00013698,2]
[334804680,1723601454292,-500.0,0.00013698,2]
[334804681,1723601454302,-500.0,0.00013698,2]
[334804682,1723601454311,-500.0,0.00013698,2]
[334804683,1723601454321,-500.0,0.00013698,2]
[334804684,1723601454331,-500.0,0.00013698,2]
[334804685,1723601454340,-1150.43,0.00013698,2]
[334804686,1723601454349,-603.15,0.00013698,2]
[334804687,1723601454359,-500.0,0.00013698,2]
[334804688,1723601454370,-500.0,0.00013698,2]
[334804689,1723601454380,-3543.02,0.00013698,2]
[334804690,1723601454390,-1271.04,0.00013698,2]
[334804691,1723601454399,-500.0,0.00013698,2]
[334804692,1723601454409,-500.0,0.00013698,2]
[334804693,1723601454418,-500.0,0.00013698,2]
[334804694,1723601454428,-1329.04,0.00013698,2]
[334804695,1723601454437,-500.0,0.00013698,2]
[334804696,1723601454447,-500.0,0.00013698,2]
[334804697,1723601454456,-500.0,0.00013698,2]
[334804698,1723601454465,-564.93,0.00013698,2]
[334804699,1723601454474,-856.45,0.00013698,2]
[334804700,1723601454484,-500.0,0.00013698,2]
[334804701,1723601454493,-510.92,0.00013698,2]
[334804702,1723601454503,-151.0,0.00013698,2]
[334804703,1723601454512,-500.0,0.00013698,2]
[334804704,1723601454522,-500.0,0.00013698,2]
[334804705,1723601454531,-151.0,0.00013698,2]
[334804706,1723601454541,-151.0,0.00013698,2]
[334804707,1723601454551,-151.0,0.00013698,2]
[334804708,1723601454560,-500.0,0.00013698,2]
[334804709,1723601454570,-594.17,0.00013698,2]
[334804710,1723601454580,-500.0,0.00013698,2]
[334804711,1723601454590,-500.0,0.00013698,2]
[334804712,1723601454599,-500.0,0.00013698,2]
[334804713,1723601454608,-500.0,0.00013698,2]
[334804714,1723601454620,-500.0,0.00013698,2]
[334804715,1723601454629,-500.0,0.00013698,2]
[334804716,1723601454639,-151.0,0.00013698,2]
[334804717,1723601454649,-151.0,0.00013698,2]
[334804718,1723601454658,-192.131572,0.00013698,2]
[334804719,1723601454669,-1346.1,0.00013698,2]
[334804720,1723601454678,-500.0,0.00013698,2]
[334804721,1723601454688,-500.0,0.00013698,2]
[334804722,1723601454698,-1064.61,0.00013698,2]
[334804723,1723601454707,-837.72,0.00013698,2]
[334804724,1723601454716,-783.91,0.00013698,2]